bitfinex-derivatives/quotes_ETHF0:USTF0_20251116
["timestamp","ask_amount","ask_price","bid_price","bid_amount"]
[1763282073513,15.027,3214.6,3214.5,0.3889]
[1763282074116,1.1167062,3214.7,3214.6,0.2394]
[1763282074326,1.67819637,3214.9,3214.7,0.2394]
[1763282074327,1.1167062,3214.8,3214.7,0.2394]
[1763282074620,0.83790441,3214.8,3214.7,0.2394]
[1763282075919,12.22,3214.8,3214.7,0.2394]
[1763282077927,0.83790441,3214.9,3214.8,0.2394]
[1763282086446,1.1167062,3214.9,3214.5,0.1495]
[1763282086646,4.3245062,3214.6,3214.5,0.1495]
[1763282086846,1.1167062,3214.7,3214.6,0.2394]
[1763282087048,16.1437062,3214.7,3214.6,0.2394]
[1763282088747,16.1437062,3214.7,3214.5,0.1495]
[1763282088945,0.83808912,3214.6,3214.5,0.1495]
[1763282089841,4.88599637,3214.6,3214.0,0.1495]
[1763282090034,4.04595271,3214.2,3214.0,0.1495]
[1763282090235,18.2348,3214.2,3214.0,0.1495]
[1763282090441,0.83815271,3214.1,3214.0,0.3889]
[1763282092640,0.83815271,3214.2,3214.0,0.1495]
[1763282092847,0.83815271,3214.1,3214.0,0.3889]
[1763282093446,0.83815271,3214.1,3214.0,0.1495]
[1763282095540,0.83815271,3214.1,3214.0,0.1475]
[1763282095948,1.11753695,3214.2,3214.0,0.1475]
[1763282096344,0.83692229,3214.1,3214.0,0.1475]
[1763282096950,1.11753695,3214.2,3214.0,0.1475]
[1763282097348,0.83682916,3214.1,3214.0,0.1475]
[1763282097739,1.11753695,3214.2,3214.0,0.1475]
[1763282097945,1.11753695,3214.2,3213.6,2.642e-05]
[1763282098145,4.04461528,3213.9,3213.6,2.642e-05]
[1763282098345,15.86581528,3213.8,3213.6,2.642e-05]
[1763282100149,0.83681528,3213.8,3213.6,2.642e-05]
[1763282100347,15.029,3213.7,3213.6,2.642e-05]
[1763282100549,15.029,3213.7,3213.6,0.24052642]
[1763282101254,4.04461528,3213.9,3213.8,0.2405]
[1763282101455,18.2378,3213.9,3213.8,0.2405]
[1763282102152,18.2378,3213.9,3213.6,2.642e-05]
[1763282102348,19.07461528,3213.9,3213.6,2.642e-05]
[1763282103850,0.83681528,3214.0,3213.9,0.2405]
[1763282104148,13.271,3214.0,3213.6,2.642e-05]
[1763282104346,4.04461528,3214.3,3214.2,0.2405]
[1763282104541,18.2378,3214.3,3214.2,0.2405]
[1763282104746,18.2378,3214.3,3214.0,0.1364]
[1763282105248,18.2378,3214.3,3214.2,0.2405]
[1763282106955,18.2378,3214.3,3214.0,0.1364]
[1763282107944,18.2378,3214.3,3214.2,0.2405]
[1763282108147,3.2078,3214.3,3214.2,0.2405]
[1763282108448,0.83681528,3214.6,3214.5,0.3769]
[1763282108643,4.32533695,3214.7,3214.6,0.2405]
[1763282108644,3.2078,3214.7,3214.6,0.2405]
[1763282112862,3.2078,3214.7,3214.5,0.1364]
[1763282113452,3.2078,3214.7,3214.6,0.2405]
[1763282113862,16.10461528,3214.8,3214.6,0.2405]
[1763282115564,16.10522118,3214.8,3214.6,0.2405]
[1763282115866,1.11753695,3214.7,3214.5,0.1364]
[1763282117663,1.11753695,3214.6,3214.5,0.1364]
[1763282118066,6.0,3214.6,3213.6,2.642e-05]
[1763282118261,0.83742904,3213.8,3213.6,2.642e-05]
[1763282118468,18.2368,3213.7,3213.6,2.642e-05]
[1763282121362,18.2368,3213.7,3213.6,0.23972642]
[1763282122267,18.2368,3213.7,3213.6,2.642e-05]
[1763282123370,19.35337205,3213.7,3213.6,2.642e-05]
[1763282123970,18.2368,3213.7,3213.6,2.642e-05]
[1763282125368,19.35240031,3213.7,3213.6,2.642e-05]
[1763282129972,19.35240031,3213.7,3212.5,0.1437]
[1763282129973,24.2368,3213.7,3212.5,0.1437]
[1763282130179,3.2078,3212.7,3212.5,0.1437]
[1763282130370,15.032,3212.6,3212.5,0.1437]
[1763282130880,15.03584742,3212.6,3212.5,0.14656488]
[1763282131382,15.03584742,3212.6,3212.5,0.39156488]
[1763282132584,15.03684742,3212.6,3212.5,0.14656488]
[1763282136180,15.03784742,3212.6,3212.5,0.14656488]
[1763282138684,0.00384742,3212.6,3212.5,0.14656488]
[1763282138885,15.03784742,3212.6,3212.5,0.14656488]
[1763282139483,15.03784742,3212.6,3212.2,0.00466803]
[1763282139680,3.2078,3212.3,3212.2,0.00466803]
[1763282139984,18.2428,3212.3,3212.2,0.00466803]
[1763282140182,18.2428,3212.3,3211.6,3.2078]
[1763282140592,19.07885693,3212.3,3211.6,3.21035259]
[1763282141193,19.07885693,3212.3,3211.6,3.21502062]
[1763282141498,19.07885693,3212.3,3211.6,0.00722062]
[1763282144800,3.2078,3211.8,3211.6,0.00722062]
[1763282145002,15.037,3211.7,3211.6,0.00722062]
[1763282146402,15.037,3211.7,3211.2,3.2078]
[1763282147305,15.87305693,3211.7,3211.2,3.21090763]
[1763282147697,15.87305693,3211.7,3211.2,0.00310763]
[1763282148503,3.2078,3211.4,3211.2,0.00310763]
[1763282148706,15.039,3211.3,3211.2,0.00310763]
[1763282151213,3.2078,3211.4,3211.3,0.245]
[1763282151412,0.34832362,3211.7,3211.6,0.245]
[1763282151604,3.2078,3212.3,3212.2,0.245]
[1763282151806,15.1168,3212.3,3212.2,0.245]
[1763282152009,15.1168,3212.3,3212.0,0.1482]
[1763282153008,3.2078,3212.3,3212.2,0.245]
[1763282153308,10.2758,3212.3,3212.0,0.1482]
[1763282153512,10.2758,3212.3,3211.2,0.00310763]
[1763282153812,3.2078,3211.6,3211.5,0.1482]
[1763282154011,16.6438,3211.6,3211.5,0.1482]
[1763282155513,1.67211386,3212.1,3212.0,0.1482]
[1763282155718,15.053,3212.1,3212.0,0.1482]
[1763282156814,15.053,3212.1,3211.5,0.1482]
[1763282157014,3.2078,3211.8,3211.5,0.1482]
[1763282157211,15.054,3211.7,3211.5,0.1482]
[1763282157519,15.054,3211.7,3211.6,0.245]
[1763282160920,1.67211386,3212.2,3212.0,0.1414]
[1763282161216,14.011,3212.1,3212.0,0.1414]
[1763282163522,15.054,3212.1,3212.0,0.1414]
[1763282163913,15.054,3212.1,3212.0,0.37]
[1763282164315,15.054,3212.1,3212.0,0.1414]
[1763282164925,18.2618,3212.1,3212.0,0.1414]
[1763282167920,18.2638,3212.1,3212.0,0.1414]
[1763282170228,3.2078,3212.1,3212.0,0.1414]
[1763282170427,17.0248,3212.1,3212.0,0.1414]
[1763282173034,1.67211386,3212.3,3212.0,0.37]
[1763282173222,14.232,3212.2,3212.0,0.1414]
[1763282174330,17.4398,3212.2,3212.0,0.1414]
[1763282174732,17.4398,3212.2,3212.1,0.2286]
[1763282175031,0.00384742,3212.6,3212.4,0.2311]
[1763282175032,4.88376128,3212.6,3212.4,0.2311]
[1763282175227,15.052,3212.5,3212.4,0.2311]
[1763282175837,15.052,3212.5,3212.0,0.1414]
[1763282177929,15.052,3212.5,3212.4,0.2311]
[1763282178129,15.052,3212.5,3212.0,0.1414]
[1763282178818,3.2078,3212.2,3212.0,0.1414]
[1763282179020,15.053,3212.1,3212.0,0.1414]
[1763282179929,16.72511386,3212.1,3211.5,0.1482]
[1763282180128,1.67211386,3212.0,3211.5,0.1482]
[1763282180829,3.2078,3211.8,3211.5,0.1482]
[1763282181031,15.054,3211.7,3211.5,0.1482]
[1763282181526,16.17035389,3211.7,3211.5,0.1482]
[1763282181834,1.11635389,3211.6,3211.2,0.00310763]
[1763282182030,3.2078,3211.3,3211.2,0.00310763]
[1763282182336,19.37815389,3211.3,3211.2,0.00310763]
[1763282183635,18.2618,3211.3,3210.5,3.356]
[1763282183839,3.2078,3210.9,3210.5,3.356]
[1763282184135,15.056,3210.8,3210.5,3.356]
[1763282184530,15.056,3210.8,3210.7,0.2311]
[1763282185528,3.2078,3210.9,3210.8,0.2311]
[1763282185733,12.7658,3210.9,3210.8,0.2311]
[1763282185935,12.7658,3210.9,3210.5,3.35960333]
[1763282188531,3.2078,3210.9,3210.8,0.2311]
[1763282188831,18.2648,3210.9,3210.8,0.2311]
[1763282190143,3.2078,3210.9,3210.8,0.2311]
[1763282190438,0.00466803,3211.1,3211.0,0.3718]
[1763282193836,3.2078,3211.4,3211.3,0.2317]
[1763282195046,0.00466803,3211.7,3211.6,0.2317]
[1763282196244,0.00466803,3211.7,3211.5,0.1401]
[1763282197445,0.00466803,3211.7,3211.6,0.2317]
[1763282198247,0.00466803,3211.7,3211.5,0.1401]
[1763282200952,0.00466803,3211.7,3211.6,0.2317]
[1763282202547,15.05866803,3211.7,3211.6,0.2317]
[1763282204857,15.05666803,3211.7,3211.6,0.2317]
[1763282205759,15.05666803,3211.7,3211.5,0.1401]
[1763282206056,16.17237043,3211.7,3211.5,0.1401]
[1763282207164,16.17237043,3211.7,3211.6,0.2317]
[1763282207848,16.17237043,3211.7,3211.5,0.1401]
[1763282211866,19.38017043,3211.7,3211.5,0.1401]
[1763282214162,1.1157024,3211.6,3211.5,0.1401]
[1763282217571,1.1157024,3211.6,3211.5,0.3718]
[1763282219067,19.93658189,3211.7,3211.5,0.3718]
[1763282220066,1.67211386,3211.6,3211.5,0.3718]
[1763282221271,4.88458189,3211.7,3211.6,0.2326]
[1763282221465,19.92958189,3211.7,3211.6,0.2326]
[1763282223376,1.12281607,3211.7,3211.6,0.2326]
[1763282223673,0.00466803,3211.7,3211.6,0.2326]
[1763282224971,0.84299932,3211.7,3211.6,0.2326]
[1763282225168,15.93714804,3211.8,3211.6,6.2326]
[1763282225169,0.39895941,3211.8,3211.6,6.2326]
[1763282225372,0.39895941,3212.3,3212.0,0.1398]
[1763282225559,0.39895941,3212.3,3212.0,3.3476]
[1763282225965,1.11814804,3212.4,3212.0,3.3476]
[1763282228075,1.11814804,3212.3,3212.0,0.1398]
[1763282228278,15.054,3212.2,3212.0,0.1398]
[1763282228477,15.054,3212.2,3212.1,0.2326]
[1763282231784,0.00466803,3212.5,3212.4,0.2326]
[1763282231985,15.05466803,3212.5,3212.1,0.00466803]
[1763282232178,16.17281607,3212.5,3212.1,0.00466803]
[1763282232379,3.2078,3212.3,3212.1,0.00466803]
[1763282234784,4.32594804,3212.3,3212.1,0.00466803]
[1763282234985,16.16914804,3212.2,3212.0,0.1392]
[1763282235191,1.1147268,3212.1,3212.0,0.1392]
[1763282238087,16.72311386,3212.2,3212.0,0.1392]
[1763282245100,1.67211386,3212.1,3212.0,0.1392]
[1763282248096,4.87991386,3212.1,3212.0,0.1392]
[1763282248700,1.67211386,3212.1,3212.0,0.1392]
[1763282248898,4.87991386,3212.1,3212.0,0.1392]
[1763282255000,3.2078,3212.1,3212.0,0.1392]
[1763282255802,15.051,3212.2,3212.0,0.1392]
[1763282256098,3.2078,3212.1,3212.0,0.1392]
[1763282257201,15.051,3212.2,3212.0,0.1392]
[1763282257499,3.2078,3212.1,3212.0,0.1392]
[1763282266410,3.2078,3212.1,3212.0,0.3767]
[1763282266909,3.2078,3212.1,3212.0,0.1392]
[1763282269818,17.28048515,3212.2,3212.0,0.1392]
[1763282270113,3.2078,3212.1,3212.0,0.1392]
[1763282273213,5.43728515,3212.1,3212.0,0.1392]
[1763282276913,2.22948515,3212.1,3212.0,0.1392]
[1763282277108,5.43728515,3212.1,3212.0,0.1392]
[1763282278013,3.2078,3212.1,3212.0,0.1392]
[1763282285621,3.2078,3212.1,3211.7,0.00466803]
[1763282285828,2.23542848,3212.0,3211.7,0.00466803]
[1763282286025,15.044,3211.9,3211.0,3.3479]
[1763282286319,1.11763745,3211.2,3211.1,0.2468]
[1763282286520,16.72045618,3211.2,3211.0,0.1401]
[1763282287416,1.11651572,3211.1,3211.0,0.3869]
[1763282290223,16.16051572,3211.2,3211.1,0.2468]
[1763282293426,19.36831572,3211.2,3211.1,0.2468]
[1763282294327,16.16051572,3211.2,3211.1,0.2468]
[1763282294533,19.36831572,3211.2,3211.1,0.2468]
[1763282295727,3.2078,3211.2,3211.1,0.2468]
[1763282296114,16.0828,3211.2,3211.1,0.2468]
[1763282296929,17.19931572,3211.2,3211.1,0.2468]
[1763282298236,4.32431572,3211.2,3211.1,0.2468]
[1763282298628,17.19831572,3211.2,3211.1,0.2468]
[1763282301130,18.2528,3211.2,3211.1,0.2468]
[1763282303437,19.36931572,3211.2,3211.1,0.2468]
[1763282309140,18.2528,3211.2,3211.1,0.2468]
[1763282309946,19.37031923,3211.2,3211.1,0.2468]
[1763282310347,18.2528,3211.2,3211.1,0.2468]
[1763282311547,0.83831572,3211.2,3211.1,0.2468]
[1763282311754,15.88231572,3211.3,3211.2,0.238]
[1763282313949,15.88231572,3211.3,3211.0,0.1401]
[1763282314249,0.83831572,3211.2,3211.1,0.238]
[1763282314449,15.88231572,3211.3,3211.1,0.238]
[1763282315251,0.83831572,3211.2,3211.0,0.1401]
[1763282315451,15.88231572,3211.3,3211.2,0.238]
[1763282316752,15.88231572,3211.3,3211.0,0.1401]
[1763282316753,15.044,3211.3,3211.0,0.1401]
[1763282316948,0.8385613,3211.2,3211.0,0.1401]
[1763282318049,1.11768909,3211.2,3211.0,0.1401]
[1763282319247,1.11768909,3211.1,3211.0,0.1401]
[1763282320250,1.11768909,3211.2,3211.0,0.1401]
[1763282323558,1.11768909,3211.2,3211.1,0.238]
[1763282323755,16.16068909,3211.2,3211.1,0.238]
[1763282326456,16.16068909,3211.2,3211.0,0.1401]
[1763282330469,16.16068909,3211.2,3211.1,0.238]
[1763282330670,1.11768909,3211.3,3211.2,0.238]
[1763282330871,16.16068909,3211.3,3211.2,0.238]
[1763282332072,15.043,3211.3,3211.2,0.238]
[1763282332872,16.16068909,3211.3,3211.2,0.238]
[1763282333569,16.16068909,3211.3,3211.0,0.1401]
[1763282333872,0.83872003,3211.1,3211.0,0.3781]
[1763282335070,0.83872003,3211.2,3211.1,0.238]
[1763282337775,16.16068909,3211.3,3211.1,0.238]
[1763282341779,16.16068909,3211.3,3211.2,0.2247]
[1763282341977,0.83888911,3211.6,3211.2,3.2078]
[1763282342181,0.83888911,3212.1,3211.9,0.2247]
[1763282342381,12.43988911,3212.3,3212.2,0.2247]
[1763282342874,12.43908217,3212.3,3212.2,0.2247]
[1763282343082,11.601,3212.3,3212.2,0.2247]
[1763282343379,12.43858061,3212.3,3212.2,0.2247]
[1763282344476,11.601,3212.3,3212.2,0.2247]
[1763282346378,0.00466803,3212.5,3212.4,0.2247]
[1763282349084,0.00466803,3212.5,3212.4,3.4325]
[1763282349686,0.00384742,3212.6,3212.5,0.3737]
[1763282355681,0.00384742,3212.6,3212.5,3.5815]
[1763282359889,0.00384742,3212.6,3212.5,0.149]
[1763282363094,0.00384742,3212.6,3212.5,0.3925]
[1763282364682,0.00384742,3212.6,3212.5,0.149]
[1763282365087,6.00384742,3212.6,3212.5,0.149]
[1763282365282,6.84142803,3212.6,3212.0,3.3568]
[1763282365490,3.2078,3212.4,3212.0,3.3568]
[1763282365794,15.035,3212.3,3212.2,0.2435]
[1763282366893,15.035,3212.3,3212.0,3.3568]
[1763282368284,15.87258061,3212.3,3212.0,3.3568]
[1763282371011,15.87258061,3212.3,3212.0,0.149]
[1763282371207,0.83758061,3212.2,3212.0,0.149]
[1763282371412,0.83758061,3212.1,3212.0,0.149]
[1763282371713,1.11768909,3212.1,3211.6,3.2078]
[1763282371912,22.71145618,3212.3,3211.5,0.149]
[1763282371913,4.88425618,3211.8,3211.5,0.149]
[1763282372114,16.15112344,3211.7,3211.5,0.149]
[1763282373412,0.8362319,3211.6,3211.5,0.149]
[1763282374309,13.0302319,3211.6,3211.5,0.149]
[1763282374508,13.0302319,3211.6,3211.5,0.3932]
[1763282375407,12.194,3211.6,3211.5,0.3932]
[1763282375716,0.8362319,3211.7,3211.5,0.149]
[1763282375916,12.195,3211.6,3211.5,0.149]
[1763282376216,0.8362319,3211.7,3211.5,0.149]
[1763282376418,12.195,3211.6,3211.5,0.149]
[1763282376709,15.036,3211.6,3211.5,0.149]
[1763282377616,4.0440319,3211.8,3211.7,0.2442]
[1763282377810,18.2448,3211.8,3211.7,0.2442]
[1763282379211,15.037,3211.8,3211.7,0.2442]
[1763282397223,1.11612344,3212.0,3211.8,0.2442]
[1763282397420,1.11612344,3212.0,3211.9,0.2442]
[1763282397617,12.209,3212.0,3211.9,0.2442]
[1763282402724,1.11612344,3212.1,3212.0,0.3694]
[1763282403024,4.32392344,3212.3,3212.2,0.2331]
[1763282403225,19.10792344,3212.3,3212.2,0.2331]
[1763282404330,19.35992344,3212.3,3212.2,0.2331]
[1763282404521,19.08252748,3212.3,3212.2,0.2331]
[1763282404827,15.87372748,3212.3,3212.2,0.2331]
[1763282406125,15.035,3212.3,3212.2,0.2331]
[1763282406325,15.87372748,3212.3,3212.2,0.2331]
[1763282407623,0.83872748,3212.4,3212.3,0.2331]
[1763282407925,15.035,3212.4,3212.3,0.2331]
[1763282409530,0.8425749,3212.6,3212.5,0.3694]
[1763282409727,13.1175749,3212.6,3212.5,0.3694]
[1763282410431,13.1175749,3212.6,3212.5,0.1363]
[1763282410633,15.8765749,3212.6,3212.5,0.1363]
[1763282410934,15.03784742,3212.6,3212.0,3.3441]
[1763282411132,0.83867211,3212.5,3212.0,3.3441]
[1763282411629,0.83867211,3212.5,3212.0,0.1363]
[1763282411828,0.83867211,3212.5,3212.0,3.3441]
[1763282412222,0.83867211,3212.5,3212.0,0.1363]
[1763282412422,0.83867211,3212.5,3212.0,3.3441]
[1763282412829,15.87651953,3212.6,3212.0,3.3441]
[1763282413026,15.87651953,3212.6,3212.5,0.3694]
[1763282413731,15.03784742,3212.6,3212.5,0.3694]
[1763282413922,15.87551953,3212.6,3212.5,0.3694]
[1763282414121,15.03684742,3212.6,3212.5,0.3694]
[1763282414733,15.03684742,3212.6,3212.5,0.1363]
[1763282416823,15.03684742,3212.6,3212.5,0.38]
[1763282417532,15.03684742,3212.6,3212.5,0.1363]
[1763282421828,15.03684742,3212.6,3212.5,0.38]
[1763282422235,15.87551953,3212.6,3212.5,0.38]
[1763282422937,15.03684742,3212.6,3212.5,0.38]
[1763282423129,0.00384742,3212.6,3212.5,0.38]
[1763282423330,12.27384742,3212.6,3212.5,0.38]
[1763282427642,12.27384742,3212.6,3212.5,0.1363]
[1763282429136,12.27384742,3212.6,3212.5,0.38]
[1763282432245,13.11251953,3212.6,3212.5,0.38]
[1763282432948,13.11251953,3212.6,3212.5,0.1363]
[1763282435542,13.11251953,3212.6,3212.5,0.3721]
[1763282439152,13.11251953,3212.6,3212.3,3.2078]
[1763282439357,0.83867211,3212.4,3212.3,3.2078]
[1763282442155,1.67645618,3212.5,3212.0,0.1363]
[1763282442354,0.83903486,3212.1,3212.0,0.1363]
[1763282444154,1.11871315,3212.1,3212.0,0.1363]
[1763282445263,16.14771315,3212.2,3212.0,0.1363]
[1763282446563,1.11871315,3212.1,3212.0,0.1363]
[1763282447165,16.14771315,3212.2,3212.0,0.1363]
[1763282451172,0.83724411,3212.1,3212.0,0.1363]
[1763282451569,16.14771315,3212.2,3212.0,0.1363]
[1763282452170,0.83713642,3212.1,3212.0,0.1363]
[1763282452664,0.83713642,3212.1,3212.0,0.3721]
[1763282452868,15.03,3212.1,3212.0,0.3721]
[1763282453672,0.83713642,3212.2,3212.0,0.3721]
[1763282453873,15.03,3212.1,3212.0,0.3721]
[1763282454172,15.03,3212.1,3212.0,0.1363]
[1763282455677,15.03,3212.1,3212.0,0.3721]
[1763282456265,15.73576465,3212.1,3212.0,0.3721]
[1763282457269,0.70576465,3212.1,3212.0,0.3721]
[1763282457479,0.00384742,3212.6,3212.5,0.3743]
[1763282457670,0.00384742,3212.6,3212.5,3.5821]
[1763282461674,0.00384742,3212.6,3212.5,3.3463]
[1763282462882,0.00384742,3212.6,3212.5,3.5792]
[1763282464477,0.00384742,3212.6,3212.5,0.3714]
[1763282464684,0.00384742,3212.6,3212.5,0.1385]
[1763282465084,0.00384742,3212.6,3212.5,0.3714]
[1763282471184,1.545e-05,3212.9,3212.8,0.2329]
[1763282471383,1.545e-05,3212.9,3212.8,3.4407]
[1763282471887,1.545e-05,3212.9,3212.8,9.69015188]
[1763282472087,1.545e-05,3212.9,3212.8,10.80813211]
[1763282472390,0.31673,3213.9,3213.8,0.2329]
[1763282473481,0.31915875,3213.9,3213.8,0.2329]
[1763282476790,0.31915875,3213.9,3213.6,3.2078]
[1763282477491,0.31915875,3213.9,3213.8,0.2272]
[1763282478990,0.31915875,3213.9,3213.6,3.2078]
[1763282479391,0.31915875,3213.9,3213.8,0.2272]
[1763282479788,0.00466803,3214.2,3214.1,0.2272]
[1763282480799,0.00857185,3214.2,3214.1,0.2272]
[1763282483398,0.00857185,3214.2,3214.0,0.1347]
[1763282484699,0.00857185,3214.2,3214.1,0.2272]
[1763282485001,0.00857185,3214.2,3214.0,0.1347]
[1763282485501,0.00857185,3214.2,3214.1,0.2272]
[1763282486001,0.00857185,3214.2,3214.0,0.1347]
[1763282488201,0.84547044,3214.2,3213.6,3.2078]
[1763282488603,0.83689859,3214.1,3214.0,0.138]
[1763282489002,0.84547044,3214.2,3214.0,0.138]
[1763282489793,0.83689859,3214.1,3214.0,0.138]
[1763282491400,0.84547044,3214.2,3214.1,0.2329]
[1763282491600,0.00857185,3214.2,3214.1,0.2329]
[1763282492606,0.00857185,3214.2,3214.1,3.4407]
[1763282497710,0.00857185,3214.2,3214.1,0.2329]
[1763282498806,0.00857185,3214.2,3214.0,0.138]
[1763282499000,0.00857185,3214.2,3214.1,0.2329]
[1763282499209,0.84547044,3214.2,3214.1,0.2329]
[1763282500012,0.00857185,3214.2,3214.1,0.2329]
[1763282500211,0.00857185,3214.2,3214.1,3.4407]
[1763282500411,0.83689859,3214.5,3214.4,0.2329]
[1763282500614,0.83689859,3214.6,3214.5,0.3709]
[1763282501317,0.00380169,3214.6,3214.5,0.3709]
[1763282502310,1.12251484,3214.6,3214.5,0.3709]
[1763282502513,0.00380169,3214.6,3214.5,0.3709]
[1763282503519,0.84134838,3214.6,3214.5,0.3709]
[1763282506020,0.00380169,3214.6,3214.5,0.3709]
[1763282507115,3.2078,3214.8,3214.5,0.3709]
[1763282507116,3.30254838,3214.8,3214.6,0.2329]
[1763282507423,0.00466803,3214.9,3214.8,0.2329]
[1763282508217,0.00842576,3214.9,3214.8,0.2329]
[1763282510823,15.03042576,3214.9,3214.8,0.2329]
[1763282512323,15.03042576,3214.9,3214.5,0.138]
[1763282512524,16.14913891,3214.9,3214.5,0.138]
[1763282516623,3.2078,3214.7,3214.5,0.138]
[1763282516828,4.32651315,3214.7,3214.5,0.138]
[1763282517327,1.11871315,3214.6,3214.5,0.138]
[1763282518632,16.14171315,3214.6,3214.5,0.138]
[1763282519127,1.11871315,3214.6,3214.5,0.3709]
[1763282519327,12.76271315,3214.7,3214.6,0.2347]
[1763282520435,12.76271315,3214.7,3214.5,0.138]
[1763282520634,1.11678885,3214.6,3214.5,0.138]
[1763282522132,1.11678885,3214.6,3214.5,0.3727]
[1763282522333,14.00878885,3214.6,3214.5,0.3727]
[1763282523042,12.892,3214.6,3214.5,0.3727]
[1763282523239,1.12521461,3214.9,3214.8,0.2347]
[1763282523432,0.00842576,3214.9,3214.8,0.2347]
[1763282523630,0.00842576,3214.9,3214.5,0.138]
[1763282524539,0.00842576,3214.9,3214.8,0.2347]
[1763282534339,9.50142576,3214.9,3214.8,0.2347]
[1763282546250,9.50142576,3214.9,3214.5,0.138]
[1763282546454,3.2078,3214.7,3214.5,0.138]
[1763282546642,4.32458885,3214.7,3214.5,0.138]
[1763282546954,1.67645618,3214.6,3214.5,0.138]
[1763282547355,3.2078,3214.7,3214.5,0.138]
[1763282548458,3.2078,3214.7,3214.2,0.00466803]
[1763282548759,1.11514173,3214.3,3214.2,0.00466803]
[1763282548960,16.13214173,3214.3,3214.2,0.00466803]
[1763282550063,16.13214173,3214.3,3214.2,0.24406803]
[1763282550260,16.13214173,3214.3,3214.2,0.00466803]
[1763282552161,15.017,3214.3,3214.2,0.00466803]
[1763282553256,16.13214173,3214.3,3214.2,0.00466803]
[1763282553458,15.017,3214.3,3214.2,0.00466803]
[1763282554255,16.6897126,3214.3,3214.2,0.00466803]
[1763282557163,15.017,3214.3,3214.2,0.00466803]
[1763282559163,18.2248,3214.3,3214.2,0.00466803]
[1763282559659,19.33725531,3214.3,3214.2,0.24406803]
[1763282559862,4.32025531,3214.3,3214.2,0.24406803]
[1763282560066,18.2268,3214.3,3214.2,0.24406803]
[1763282560561,2.493,3214.5,3214.2,0.24406803]
[1763282560766,2.493,3214.5,3214.4,0.2394]
[1763282560957,17.513,3214.5,3214.4,0.2394]
[1763282562264,15.02,3214.5,3214.4,0.2394]
[1763282568772,4.04253188,3214.8,3214.7,0.2394]
[1763282568965,19.06153188,3214.8,3214.7,0.2394]
[1763282569156,19.06153188,3214.8,3214.5,0.1372]
[1763282571169,0.83473188,3214.7,3214.5,0.1372]
[1763282574167,0.83473188,3214.6,3214.5,0.1372]
[1763282574376,0.83473188,3214.7,3214.5,0.1372]
[1763282574869,0.83473188,3214.7,3214.6,0.2394]
[1763282575073,3.2078,3214.8,3214.7,0.2394]
[1763282578366,3.2078,3214.8,3214.5,0.1372]
[1763282578566,15.017,3214.7,3214.6,0.2264]
[1763282582474,15.017,3214.7,3214.5,0.1372]
[1763282583074,15.85173188,3214.7,3214.5,0.1372]
[1763282585984,0.83473188,3214.6,3214.5,0.1372]
[1763282586886,0.83473188,3214.6,3214.5,0.3636]
[1763282588092,19.33725531,3214.7,3214.5,0.3636]
[1763282588287,0.83543221,3214.6,3214.5,0.3636]
[1763282589091,19.33725531,3214.7,3214.6,0.2264]
[1763282589892,19.33725531,3214.7,3214.5,0.1372]
[1763282590393,19.33725531,3214.7,3214.6,0.2264]
[1763282593193,1.95726623,3214.9,3214.6,0.2264]
[1763282593393,0.84481092,3214.9,3214.8,0.2264]
[1763282594189,0.00842576,3214.9,3214.8,0.2264]
[1763282599498,0.00842576,3214.9,3214.8,3.4342]
[1763282609809,0.00842576,3214.9,3214.8,0.2264]
[1763282611403,0.71270815,3214.9,3214.8,0.2264]
[1763282611606,0.00842576,3214.9,3214.8,0.2264]
[1763282613301,0.71270815,3214.9,3214.8,0.2264]
[1763282613601,0.00842576,3214.9,3214.8,0.2264]
[1763282615811,0.70428239,3215.1,3215.0,0.3849]
[1763282616015,0.83638516,3215.3,3215.2,0.2377]
[1763282616514,1.54151207,3215.3,3215.2,0.2377]
[1763282616824,0.83884458,3215.3,3215.2,0.2400539]
[1763282617119,1.54397149,3215.3,3215.2,0.2400539]
[1763282617509,0.83884458,3215.3,3215.2,0.2400539]
[1763282617708,1.54397149,3215.3,3215.2,0.2400539]
[1763282618015,0.83884458,3215.3,3215.2,0.2400539]
[1763282618216,1.54397149,3215.3,3215.2,0.2400539]
[1763282618603,1.11245531,3215.8,3215.7,0.2377]
[1763282618905,0.247,3215.6,3215.5,0.2377]
[1763282619104,0.247,3215.4,3215.3,3.4455]
[1763282619311,1.11245531,3215.9,3215.4,0.2377]
[1763282619521,1.11514683,3215.9,3215.4,0.2377]
[1763282619911,0.247,3215.5,3215.4,0.2377]
[1763282620322,1.11514683,3215.9,3215.8,0.2377]
[1763282620508,1.36214683,3215.9,3215.5,0.1088]
[1763282622217,0.247,3215.6,3215.5,0.3465]
[1763282623915,0.247,3215.6,3215.5,0.2377]
[1763282624120,0.3852,3215.5,3215.4,0.2377]
[1763282628514,0.247,3215.5,3215.4,0.2377]
[1763282628719,0.24969152,3215.9,3215.8,0.2377]
[1763282629913,0.247,3215.6,3215.5,0.2377]
[1763282631819,0.00269152,3215.9,3215.8,0.2377]
[1763282632027,0.24969152,3215.9,3215.8,0.2377]
[1763282633016,0.00269152,3215.9,3215.8,0.2377]
[1763282633520,0.24969152,3215.9,3215.8,0.2377]
[1763282636322,0.00269152,3215.9,3215.8,0.2377]
[1763282644330,0.00269152,3215.9,3215.8,3.4455]
[1763282646233,0.25129152,3215.9,3215.8,3.2078]
[1763282646427,0.25129152,3215.9,3215.8,3.4375]
[1763282647628,0.25129152,3215.9,3215.3,4.32574205]
[1763282648626,0.25129152,3215.9,3215.3,3.2078]
[1763282649829,0.2486,3215.4,3215.3,3.4375]
[1763282650336,0.00269152,3215.9,3215.3,3.4375]
[1763282650832,0.2486,3215.4,3215.3,3.4375]
[1763282651628,0.2486,3215.3,3215.2,0.2320539]
[1763282652832,0.3972,3215.5,3215.4,0.2297]
[1763282653136,0.2486,3215.3,3215.2,0.2320539]
[1763282655541,0.2486,3215.3,3215.2,0.0023539]